fUSD/lending_fUSD_20250804
["ID","MTS","AMOUNT","RATE_DAILY","PERIOD"]
[377233927,1754305932236,-999.83,0.00039452,2]
[377233928,1754305932246,-1091.32,0.00039452,2]
[377233929,1754305932256,-400.0,0.00039452,2]
[377233930,1754305932266,-558.09,0.00039452,2]
[377233931,1754305932277,-400.0,0.00039452,2]
[377233932,1754305932289,-562.8,0.00039452,2]
[377233933,1754305932300,-1242.64,0.00039452,2]
[377233934,1754305932310,-286.183478,0.00039452,14]
[377233935,1754305932320,-793.84,0.00039452,2]
[377233936,1754305932330,-1330.82,0.00039452,2]
[377233937,1754305932340,-282.31782314,0.00039452,2]
[377233938,1754305932349,-1446.54,0.00039452,2]
[377233939,1754305932359,-2488.352271,0.00039452,14]
[377233940,1754305932369,-1346.03,0.00039452,2]
[377233941,1754305932378,-364.14356366,0.00039452,2]
[377233942,1754305932389,-1481.75,0.00039452,2]
[377233943,1754305932398,-879.7,0.00039452,2]
[377233944,1754305932408,-400.0,0.00039452,2]
[377233945,1754305932418,-400.0,0.00039452,2]
[377233946,1754305932427,-1081.44,0.00039452,2]
[377233947,1754305932436,-2488.352271,0.00039452,14]
[377233948,1754305932446,-2294.74,0.00039452,2]
[377233949,1754305932455,-528.1,0.00039452,2]
[377233950,1754305932465,-400.0,0.00039452,2]
[377233951,1754305932474,-768.31,0.00039452,2]
[377233952,1754305932484,-2185.11,0.00039452,2]
[377233953,1754305932495,-400.0,0.00039452,2]
[377233954,1754305932504,-764.62,0.00039452,2]
[377233955,1754305932514,-400.0,0.00039452,2]
[377233956,1754305932523,-400.0,0.00039452,2]
[377233957,1754305932533,-2154.11,0.00039452,2]
[377233958,1754305932543,-286.183478,0.00039452,14]
[377233959,1754305932553,-400.0,0.00039452,2]
[377233960,1754305932562,-400.0,0.00039452,2]
[377233961,1754305932572,-670.62,0.00039452,2]
[377233962,1754305932581,-1687.51,0.00039452,2]
[377233963,1754305932591,-400.0,0.00039452,2]
[377233964,1754305932600,-1797.87,0.00039452,2]
[377233965,1754305932610,-884.68,0.00039452,2]
[377233966,1754305932619,-378.1395592,0.00039452,2]
[377233967,1754305932629,-466.07,0.00039452,2]
[377233968,1754305932638,-252.25554,0.00039452,14]
[377233969,1754305932648,-1427.05,0.00039452,2]
[377233970,1754305932658,-659.47,0.00039452,2]
[377233971,1754305932667,-1547.49,0.00039452,2]
[377233972,1754305932677,-430.38,0.00039452,2]
[377233973,1754305932687,-400.0,0.00039452,2]
[377233974,1754305932696,-335.38095136,0.00039452,2]
[377233975,1754305932706,-948.07,0.00039452,2]
[377233976,1754305932716,-400.0,0.00039452,2]
[377233977,1754305932725,-252.25554,0.00039452,14]
[377233978,1754305932735,-1424.69,0.00039452,2]
[377233979,1754305932745,-1692.45,0.00039452,2]
[377233980,1754305932754,-400.0,0.00039452,2]
[377233981,1754305932764,-1068.48,0.00039452,2]
[377233982,1754305932774,-870.74,0.00039452,2]
[377233983,1754305932783,-1702.7,0.00039452,2]
[377233984,1754305932793,-1630.8,0.00039452,2]
[377233985,1754305932802,-400.0,0.00039452,2]
[377233986,1754305932813,-469.7,0.00039452,2]
[377233987,1754305932823,-840.48,0.00039452,2]
[377233988,1754305932833,-665.52,0.00039452,2]
[377233989,1754305932843,-727.65,0.00039452,2]
[377233990,1754305932852,-404.08673011,0.00039452,2]
[377233991,1754305932862,-400.0,0.00039452,2]
[377233992,1754305932871,-1107.78,0.00039452,2]
[377233993,1754305932881,-1880.84,0.00039452,2]
[377233994,1754305932890,-813.9,0.00039452,2]
[377233995,1754305932900,-400.0,0.00039452,2]
[377233996,1754305932912,-400.0,0.00039452,2]
[377233997,1754305932922,-400.0,0.00039452,2]
[377233998,1754305932932,-874.7,0.00039452,2]
[377233999,1754305932941,-400.0,0.00039452,2]
[377234000,1754305932952,-525.30106371,0.00039452,2]
[377234001,1754305932961,-426.16,0.00039452,2]
[377234002,1754305932970,-665.68,0.00039452,2]
[377234003,1754305932980,-400.0,0.00039452,2]
[377234004,1754305932991,-1110.47,0.00039452,2]
[377234005,1754305933000,-155.684209,0.00039452,14]
[377234006,1754305933010,-400.0,0.00039452,2]
[377234007,1754305933019,-903.87,0.00039452,2]
[377234008,1754305933029,-470.81,0.00039452,2]
[377234009,1754305933038,-1358.5,0.00039452,2]
[377234010,1754305933047,-472.86,0.00039452,2]
[377234011,1754305933057,-440.85,0.00039452,2]
[377234012,1754305933066,-1647.73,0.00039452,2]
[377234013,1754305933075,-1246.04,0.00039452,2]
[377234014,1754305933085,-924.22,0.00039452,2]
[377234015,1754305933094,-994.67,0.00039452,2]
[377234016,1754305933103,-1443.42,0.00039452,2]
[377234017,1754305933112,-979.61,0.00039452,2]
[377234018,1754305933121,-770.36,0.00039452,2]
[377234019,1754305933130,-1946.52,0.00039452,2]
[377234020,1754305933140,-400.0,0.00039452,2]
[377234021,1754305933149,-348.16830669,0.00039452,2]
[377234022,1754305933158,-482.35,0.00039452,2]
[377234023,1754305933167,-400.0,0.00039452,2]
[377234024,1754305933176,-400.0,0.00039452,2]
[377234025,1754305933185,-2101.73,0.00039452,2]
[377234026,1754305933194,-860.7,0.00039452,2]
[377234027,1754305933203,-645.5,0.00039452,2]
[377234028,1754305933212,-537.4,0.00039452,2]
[377234029,1754305933221,-537.04,0.00039452,2]
[377234030,1754305933231,-450.14,0.00039452,2]
[377234031,1754305933241,-400.0,0.00039452,2]
[377234032,1754305933250,-1175.36,0.00039452,2]
[377234033,1754305933259,-456.48,0.00039452,2]
[377234034,1754305933370,-400.0,0.00039452,2]
[377234035,1754305933380,-798.27,0.00039452,2]
[377234036,1754305933389,-1154.12,0.00039452,2]
[377234037,1754305933398,-1226.27,0.00039452,2]
[377234038,1754305933407,-939.52,0.00039452,2]
[377234039,1754305933416,-400.0,0.00039452,2]
[377234040,1754305933426,-786.99,0.00039452,2]
[377234041,1754305933437,-400.0,0.00039452,2]
[377234042,1754305933446,-400.0,0.00039452,2]
[377234043,1754305933456,-869.19,0.00039452,2]
[377234044,1754305933466,-842.4,0.00039452,2]
[377234045,1754305933475,-700.37,0.00039452,2]
[377234046,1754305933484,-400.0,0.00039452,2]
[377234047,1754305933494,-1791.49,0.00039452,2]
[377234048,1754305933504,-1000.94,0.00039452,2]
[377234049,1754305933513,-1221.49,0.00039452,2]
[377234050,1754305933522,-991.24,0.00039452,2]
[377234051,1754305933531,-400.0,0.00039452,2]
[377234052,1754305933541,-400.0,0.00039452,2]
[377234053,1754305933550,-1747.77,0.00039452,2]
[377234054,1754305933559,-400.0,0.00039452,2]
[377234055,1754305933568,-1316.83,0.00039452,2]
[377234056,1754305933578,-755.49,0.00039452,2]
[377234057,1754305933587,-1344.32,0.00039452,2]
[377234058,1754305933596,-778.88,0.00039452,2]
[377234059,1754305933605,-400.0,0.00039452,2]
[377234060,1754305933614,-1539.3,0.00039452,2]
[377234061,1754305933623,-444.22,0.00039452,2]
[377234062,1754305933633,-206.76515548,0.00039452,2]
[377234063,1754305933642,-1258.35,0.00039452,2]
[377234064,1754305933651,-400.0,0.00039452,2]
[377234065,1754305933660,-400.0,0.00039452,2]
[377234066,1754305933669,-400.0,0.00039452,2]
[377234067,1754305933678,-400.0,0.00039452,2]
[377234068,1754305933687,-1113.84,0.00039452,2]
[377234069,1754305933695,-1182.86,0.00039452,2]
[377234070,1754305933704,-4729.89,0.00039452,2]
[377234071,1754305933714,-1278.85,0.00039452,2]
[377234072,1754305933723,-406.37955207,0.00039452,2]
[377234073,1754305933732,-454.82,0.00039452,2]
[377234074,1754305933742,-492.55,0.00039452,2]
[377234075,1754305933751,-1031.98,0.00039452,2]
[377234076,1754305933760,-775.41,0.00039452,2]
[377234077,1754305933769,-400.0,0.00039452,2]
[377234078,1754305933778,-400.0,0.00039452,2]
[377234079,1754305933787,-1202.77,0.00039452,2]
[377234080,1754305933796,-400.0,0.00039452,2]
[377234081,1754305933806,-1481.93,0.00039452,2]
[377234082,1754305933815,-400.0,0.00039452,2]
[377234083,1754305933825,-1675.62,0.00039452,2]
[377234084,1754305933835,-815.04,0.00039452,2]
[377234085,1754305933845,-584.39,0.00039452,2]
[377234086,1754305933854,-679.61,0.00039452,2]
[377234087,1754305933863,-744.37,0.00039452,2]
[377234088,1754305933873,-400.0,0.00039452,2]
[377234089,1754305933882,-400.0,0.00039452,2]
[377234090,1754305933892,-2502.12,0.00039452,2]
[377234091,1754305933901,-1340.53,0.00039452,2]
[377234092,1754305933914,-1484.28,0.00039452,2]
[377234093,1754305933923,-400.0,0.00039452,2]
[377234094,1754305933932,-1012.72,0.00039452,2]
[377234095,1754305933942,-400.0,0.00039452,2]
[377234096,1754305933951,-2328.28,0.00039452,2]
[377234097,1754305933960,-1969.15,0.00039452,2]
[377234098,1754305933969,-400.0,0.00039452,2]
[377234099,1754305933978,-400.0,0.00039452,2]
[377234100,1754305933987,-1435.3,0.00039452,2]
[377234101,1754305933997,-400.0,0.00039452,2]
[377234102,1754305934006,-913.42,0.00039452,2]
[377234103,1754305934016,-400.0,0.00039452,2]
[377234104,1754305934025,-1703.95,0.00039452,2]
[377234105,1754305934034,-400.0,0.00039452,2]
[377234106,1754305934043,-741.38,0.00039452,2]
[377234107,1754305934053,-2504.25,0.00039452,2]
[377234108,1754305934062,-400.0,0.00039452,2]
[377234109,1754305934072,-400.0,0.00039452,2]
[377234110,1754305934081,-400.0,0.00039452,2]
[377234111,1754305934090,-1030.22,0.00039452,2]
[377234112,1754305934099,-400.0,0.00039452,2]
[377234113,1754305934108,-400.0,0.00039452,2]
[377234114,1754305934117,-400.0,0.00039452,2]
[377234115,1754305934127,-400.0,0.00039452,2]
[377234116,1754305934136,-400.0,0.00039452,2]
[377234117,1754305934145,-1237.75,0.00039452,2]
[377234118,1754305934154,-400.0,0.00039452,2]
[377234119,1754305934163,-400.0,0.00039452,2]
[377234120,1754305934172,-623.67,0.00039452,2]
[377234121,1754305934181,-400.0,0.00039452,2]
[377234122,1754305934190,-992.32,0.00039452,2]
[377234123,1754305934199,-602.81,0.00039452,2]
[377234124,1754305934209,-400.0,0.00039452,2]
[377234125,1754305934218,-400.0,0.00039452,2]
[377234126,1754305934228,-537.5,0.00039452,2]
[377234127,1754305934238,-956.99,0.00039452,2]
[377234128,1754305934248,-630.59,0.00039452,2]
[377234129,1754305934259,-1585.73,0.00039452,2]
[377234130,1754305934269,-216.32245621,0.00039452,2]
[377234131,1754305934279,-626.409267,0.00039452,14]
[377234132,1754305934288,-1301.61,0.00039452,2]
[377234133,1754305934297,-1889.25,0.00039452,2]
[377234134,1754305934307,-924.72,0.00039452,2]
[377234135,1754305934316,-641.71,0.00039452,2]
[377234136,1754305934326,-400.0,0.00039452,2]
[377234137,1754305934335,-400.0,0.00039452,2]
[377234138,1754305934344,-626.409267,0.00039452,14]
[377234139,1754305934353,-400.0,0.00039452,2]
[377234140,1754305934362,-400.0,0.00039452,2]
[377234141,1754305934371,-1059.24,0.00039452,2]
[377234142,1754305934381,-2092.15,0.00039452,2]
[377234143,1754305934390,-533.38,0.00039452,2]
[377234144,1754305934399,-890.3,0.00039452,2]
[377234145,1754305934409,-400.0,0.00039452,2]
[377234146,1754305934418,-405.32960724,0.00039452,2]
[377234147,1754305934428,-501.38,0.00039452,2]
[377234148,1754305934438,-1366.75,0.00039452,2]
[377234149,1754305934448,-990.2,0.00039452,2]
[377234150,1754305934458,-1441.16,0.00039452,2]
[377234151,1754305934468,-545.68,0.00039452,2]
[377234152,1754305934477,-690.08,0.00039452,2]
[377234153,1754305934487,-400.0,0.00039452,2]
[377234154,1754305934497,-400.0,0.00039452,2]
[377234155,1754305934506,-726.21,0.00039452,2]
[377234156,1754305934516,-803.42,0.00039452,2]
[377234157,1754305934526,-645.51,0.00039452,2]
[377234158,1754305934535,-400.0,0.00039452,2]
[377234159,1754305934544,-400.0,0.00039452,2]
[377234160,1754305934554,-400.0,0.00039452,2]
[377234161,1754305934564,-400.0,0.00039452,2]
[377234162,1754305934574,-506.95,0.00039452,2]
[377234163,1754305934583,-788.62,0.00039452,2]
[377234164,1754305934593,-931.05,0.00039452,2]
[377234165,1754305934602,-2071.07,0.00039452,2]
[377234166,1754305934612,-400.0,0.00039452,2]
[377234167,1754305934621,-400.0,0.00039452,2]
[377234168,1754305934630,-552.88,0.00039452,2]
[377234169,1754305934640,-461.84437369,0.00039452,2]
[377234170,1754305934649,-400.0,0.00039452,2]
[377234171,1754305934659,-400.0,0.00039452,2]
[377234172,1754305934668,-1077.59,0.00039452,2]
[377234173,1754305934678,-400.0,0.00039452,2]
[377234174,1754305934689,-1479.72,0.00039452,2]
[377234175,1754305934698,-400.0,0.00039452,2]
[377234176,1754305934707,-551.2,0.00039452,2]
[377234177,1754305934717,-400.0,0.00039452,2]
[377234178,1754305934727,-400.0,0.00039452,2]
[377234179,1754305934737,-418.78,0.00039452,120]
[377234180,1754305934746,-404.52486721,0.00039452,2]
[377234181,1754305934756,-400.0,0.00039452,2]
[377234182,1754305934766,-400.0,0.00039452,2]
[377234183,1754305934776,-628.0,0.00039452,2]
[377234184,1754305934787,-1186.41,0.00039452,2]
[377234185,1754305934796,-400.0,0.00039452,2]
[377234186,1754305934806,-400.0,0.00039452,2]
[377234187,1754305934815,-400.0,0.00039452,2]
[377234188,1754305934827,-1047.92,0.00039452,2]
[377234189,1754305934836,-400.0,0.00039452,2]
[377234190,1754305934846,-1368.23,0.00039452,2]
[377234191,1754305934856,-882.59,0.00039452,2]
[377234192,1754305934866,-845.07,0.00039452,2]
[377234193,1754305934878,-1022.16,0.00039452,2]
[377234194,1754305934889,-627.42,0.00039452,2]
[377234195,1754305934899,-1654.02,0.00039452,2]
[377234196,1754305934914,-928.07,0.00039452,2]
[377234197,1754305934923,-463.65,0.00039452,2]
[377234198,1754305934933,-987.02,0.00039452,2]
[377234199,1754305934942,-1263.43,0.00039452,2]
[377234200,1754305934951,-1127.8,0.00039452,2]
[377234201,1754305934960,-1457.97,0.00039452,2]
[377234202,1754305934969,-732.77,0.00039452,2]
[377234203,1754305934979,-400.0,0.00039452,2]
[377234204,1754305934995,-1338.78,0.00039452,2]
[377234205,1754305935008,-1212.72,0.00039452,2]
[377234206,1754305935017,-1364.75,0.00039452,2]
[377234207,1754305935027,-151.0,0.00039452,14]
[377234208,1754305935036,-400.0,0.00039452,2]
[377234209,1754305935045,-719.82,0.00039452,2]
[377234210,1754305935055,-3088.08,0.00039452,2]
[377234211,1754305935065,-1963.71,0.00039452,2]
[377234212,1754305935075,-669.31,0.00039452,2]
[377234213,1754305935084,-400.0,0.00039452,2]
[377234214,1754305935093,-400.0,0.00039452,2]
[377234215,1754305935102,-400.0,0.00039452,2]
[377234216,1754305935112,-1049.12,0.00039452,2]
[377234217,1754305935121,-1725.86,0.00039452,2]
[377234218,1754305935130,-151.0,0.00039452,14]
[377234219,1754305935139,-470.83,0.00039452,2]
[377234220,1754305935149,-400.0,0.00039452,2]
[377234221,1754305935158,-1157.0,0.00039452,2]
[377234222,1754305935167,-1718.88,0.00039452,2]
[377234223,1754305935177,-400.0,0.00039452,2]
[377234224,1754305935186,-888.73,0.00039452,2]
[377234225,1754305935195,-574.83,0.00039452,2]
[377234226,1754305935205,-400.0,0.00039452,2]
[377234227,1754305935214,-400.0,0.00039452,2]
[377234228,1754305935223,-1630.61,0.00039452,2]
[377234229,1754305935232,-400.0,0.00039452,2]
[377234230,1754305935242,-629.17,0.00039452,2]
[377234231,1754305935251,-400.0,0.00039452,2]
[377234232,1754305935260,-1303.32,0.00039452,2]
[377234233,1754305935271,-1485.45,0.00039452,2]
[377234234,1754305935287,-666.66,0.00039452,2]
[377234235,1754305935296,-603.36,0.00039452,2]
[377234236,1754305935305,-495.64,0.00039452,2]
[377234237,1754305935315,-1527.44,0.00039452,2]
[377234238,1754305935324,-718.11,0.00039452,2]
[377234239,1754305935334,-400.0,0.00039452,2]
[377234240,1754305935344,-1307.14,0.00039452,2]
[377234241,1754305935353,-400.0,0.00039452,2]
[377234242,1754305935362,-400.0,0.00039452,2]
[377234243,1754305935371,-1110.24,0.00039452,2]
[377234244,1754305935381,-424.11703334,0.00039452,2]
[377234245,1754305935390,-869.15,0.00039452,2]
[377234246,1754305935400,-966.32,0.00039452,2]
[377234247,1754305935409,-536.27,0.00039452,2]
[377234248,1754305935419,-1091.81,0.00039452,2]
[377234249,1754305935428,-1130.18,0.00039452,2]
[377234250,1754305935438,-1075.79,0.00039452,2]
[377234251,1754305935448,-1117.05,0.00039452,2]
[377234252,1754305935458,-400.0,0.00039452,2]
[377234253,1754305935467,-905.65,0.00039452,2]
[377234254,1754305935476,-471.33,0.00039452,2]
[377234255,1754305935486,-400.0,0.00039452,2]
[377234256,1754305935495,-912.08,0.00039452,2]
[377234257,1754305935505,-400.0,0.00039452,2]
[377234258,1754305935514,-320.93317418,0.00039452,2]
[377234259,1754305935524,-400.0,0.00039452,2]
[377234260,1754305935534,-798.59,0.00039452,2]
[377234261,1754305935543,-400.0,0.00039452,2]
[377234262,1754305935552,-400.0,0.00039452,2]
[377234263,1754305935562,-1354.83,0.00039452,2]
[377234264,1754305935571,-1284.95,0.00039452,2]
[377234265,1754305935581,-1268.26,0.00039452,2]
[377234266,1754305935591,-1400.07,0.00039452,2]
[377234267,1754305935600,-400.0,0.00039452,2]
[377234268,1754305935610,-862.24,0.00039452,2]
[377234269,1754305935619,-631.36,0.00039452,2]
[377234270,1754305935628,-400.0,0.00039452,2]
[377234271,1754305935639,-699.87,0.00039452,2]
[377234272,1754305935649,-1343.86,0.00039452,2]
[377234273,1754305935658,-434.19,0.00039452,2]
[377234274,1754305935667,-743.43,0.00039452,2]
[377234275,1754305935677,-418.89,0.00039452,2]
[377234276,1754305935686,-616.73,0.00039452,2]
[377234277,1754305935696,-400.0,0.00039452,2]
[377234278,1754305935705,-927.18,0.00039452,2]
[377234279,1754305935715,-875.84,0.00039452,2]
[377234280,1754305935724,-400.0,0.00039452,2]
[377234281,1754305935734,-400.0,0.00039452,2]
[377234282,1754305935747,-1329.19,0.00039452,2]
[377234283,1754305935757,-1658.94,0.00039452,2]
[377234284,1754305935767,-1333.24,0.00039452,2]
[377234285,1754305935777,-944.68,0.00039452,2]
[377234286,1754305935787,-1263.4,0.00039452,2]
[377234287,1754305935796,-1252.38,0.00039452,2]
[377234288,1754305935805,-400.0,0.00039452,2]
[377234289,1754305935815,-967.63,0.00039452,2]
[377234290,1754305935824,-400.0,0.00039452,2]
[377234291,1754305935833,-414.76,0.00039452,2]
[377234292,1754305935842,-400.0,0.00039452,2]
[377234293,1754305935852,-400.0,0.00039452,2]
[377234294,1754305935861,-400.0,0.00039452,2]
[377234295,1754305935871,-412.29,0.00039452,2]
[377234296,1754305935880,-355.21810116,0.00039452,2]
[377234297,1754305935889,-605.41,0.00039452,2]
[377234298,1754305935898,-886.22,0.00039452,2]
[377234299,1754305935909,-1748.2,0.00039452,2]
[377234300,1754305935920,-1117.53,0.00039452,2]
[377234301,1754305935930,-2048.38,0.00039452,2]
[377234302,1754305935939,-673.68,0.00039452,2]
[377234303,1754305935948,-3038.05,0.00039452,2]
[377234304,1754305935958,-400.0,0.00039452,2]
[377234305,1754305935968,-400.0,0.00039452,2]
[377234306,1754305935978,-611.63,0.00039452,2]
[377234307,1754305935987,-1068.97,0.00039452,2]
[377234308,1754305935997,-151.0,0.00039452,14]
[377234309,1754305936006,-400.0,0.00039452,2]
[377234310,1754305936015,-841.94,0.00039452,2]
[377234311,1754305936024,-1348.61,0.00039452,2]
[377234312,1754305936033,-4263.58,0.00039452,2]
[377234313,1754305936044,-590.51,0.00039452,2]
[377234314,1754305936053,-400.0,0.00039452,2]
[377234315,1754305936063,-400.0,0.00039452,2]
[377234316,1754305936073,-400.0,0.00039452,2]
[377234317,1754305936082,-1778.85,0.00039452,2]
[377234318,1754305936091,-400.0,0.00039452,2]
[377234319,1754305936100,-400.0,0.00039452,2]
[377234320,1754305936109,-1374.4,0.00039452,2]
[377234321,1754305936119,-661.31,0.00039452,2]
[377234322,1754305936128,-888.64,0.00039452,2]
[377234323,1754305936137,-400.0,0.00039452,2]
[377234324,1754305936146,-1281.23,0.00039452,2]
[377234325,1754305936155,-1558.5,0.00039452,2]
[377234326,1754305936165,-632.03,0.00039452,2]
[377234327,1754305936174,-838.38,0.00039452,2]
[377234328,1754305936183,-1793.86,0.00039452,2]
[377234329,1754305936192,-400.0,0.00039452,2]
[377234330,1754305936202,-719.42,0.00039452,2]
[377234331,1754305936211,-2346.34,0.00039452,2]
[377234332,1754305936221,-6220.24,0.00039452,2]
[377234333,1754305936230,-2208.08,0.00039452,2]
[377234334,1754305936240,-400.0,0.00039452,2]
[377234335,1754305936249,-2028.4,0.00039452,2]
[377234336,1754305936260,-959.16,0.00039452,2]
[377234337,1754305936270,-2121.06,0.00039452,2]
[377234338,1754305936279,-1009.99,0.00039452,2]
[377234339,1754305936289,-400.0,0.00039452,2]
[377234340,1754305936299,-400.0,0.00039452,2]
[377234341,1754305936309,-1421.12,0.00039452,2]
[377234342,1754305936319,-400.0,0.00039452,2]
[377234343,1754305936329,-1169.71,0.00039452,2]
[377234344,1754305936339,-693.34,0.00039452,2]
[377234345,1754305936349,-1366.07,0.00039452,2]
[377234346,1754305936358,-1689.54,0.00039452,2]
[377234347,1754305936368,-1110.66,0.00039452,2]
[377234348,1754305936377,-487.34,0.00039452,2]
[377234349,1754305936388,-2122.58,0.00039452,2]
[377234350,1754305936398,-401.93,0.00039452,2]
[377234351,1754305936409,-548.21,0.00039452,2]
[377234352,1754305936420,-2428.92,0.00039452,2]
[377234353,1754305936431,-1096.89,0.00039452,2]
[377234354,1754305936441,-400.0,0.00039452,2]
[377234355,1754305936450,-400.0,0.00039452,2]
[377234356,1754305936459,-400.0,0.00039452,2]
[377234357,1754305936468,-558.13,0.00039452,2]
[377234358,1754305936479,-683.16,0.00039452,2]
[377234359,1754305936488,-1162.47,0.00039452,2]
[377234360,1754305936497,-4527.79,0.00039452,2]
[377234361,1754305936511,-688.63,0.00039452,2]
[377234362,1754305936520,-400.0,0.00039452,2]
[377234363,1754305936530,-5396.72,0.00039452,2]
[377234364,1754305936539,-400.0,0.00039452,2]
[377234365,1754305936548,-400.0,0.00039452,2]
[377234366,1754305936557,-400.0,0.00039452,2]
[377234367,1754305936566,-400.0,0.00039452,2]
[377234368,1754305936576,-787.49,0.00039452,2]
[377234369,1754305936585,-1940.04,0.00039452,2]
[377234370,1754305936595,-642.79,0.00039452,2]
[377234371,1754305936604,-400.0,0.00039452,2]
[377234372,1754305936614,-400.0,0.00039452,2]
[377234373,1754305936623,-400.0,0.00039452,2]
[377234374,1754305936633,-4563.07,0.00039452,2]
[377234375,1754305936643,-1973.82,0.00039452,2]
[377234376,1754305936652,-1666.37,0.00039452,2]
[377234377,1754305936662,-237.49357155,0.00039452,2]
[377234378,1754305936671,-400.0,0.00039452,2]
[377234379,1754305936680,-524.97,0.00039452,2]
[377234380,1754305936689,-962.89,0.00039452,2]
[377234381,1754305936699,-778.62,0.00039452,2]
[377234382,1754305936708,-400.0,0.00039452,2]
[377234383,1754305936717,-151.0,0.00039452,14]
[377234384,1754305936727,-1536.5,0.00039452,2]
[377234385,1754305936738,-152.32939358,0.00039452,2]
[377234386,1754305936748,-1125.71,0.00039452,2]
[377234387,1754305936758,-2940.43,0.00039452,2]
[377234388,1754305936767,-802.26,0.00039452,2]
[377234389,1754305936777,-8227.11,0.00039452,2]
[377234390,1754305936786,-770.91,0.00039452,2]
[377234391,1754305936796,-11138.27,0.00039452,2]
[377234392,1754305936805,-458.47,0.00039452,2]
[377234393,1754305936814,-1728.23,0.00039452,2]
[377234394,1754305936823,-2047.73,0.00039452,2]
[377234395,1754305936833,-400.0,0.00039452,2]
[377234396,1754305936842,-445.53838299,0.00039452,2]
[377234397,1754305936851,-2159.66,0.00039452,2]
[377234398,1754305936861,-445.29,0.00039452,2]
[377234399,1754305936870,-1756.78,0.00039452,2]
[377234400,1754305936880,-2736.99,0.00039452,2]
[377234401,1754305936889,-1618.06,0.00039452,2]
[377234402,1754305936899,-581.83,0.00039452,2]
[377234403,1754305936909,-893.35,0.00039452,2]
[377234404,1754305936921,-9079.6,0.00039452,2]
[377234405,1754305936930,-151.0,0.00039452,14]
[377234406,1754305936940,-1865.31,0.00039452,2]
[377234407,1754305936949,-400.0,0.00039452,2]
[377234408,1754305936960,-1394.73,0.00039452,2]
[377234409,1754305936969,-997.42,0.00039452,2]
[377234410,1754305936978,-1087.63,0.00039452,2]
[377234411,1754305936989,-151.0,0.00039452,14]
[377234412,1754305937000,-400.0,0.00039452,2]
[377234413,1754305937010,-3648.6,0.00039452,2]
[377234414,1754305937020,-400.0,0.00039452,2]
[377234415,1754305937030,-510.65,0.00039452,2]
[377234416,1754305937039,-520.48,0.00039452,2]
[377234417,1754305937048,-1873.61,0.00039452,2]
[377234418,1754305937057,-1200.71,0.00039452,2]
[377234419,1754305937066,-400.0,0.00039452,2]
[377234420,1754305937076,-1629.46,0.00039452,2]
[377234421,1754305937085,-875.07,0.00039452,2]
[377234422,1754305937094,-531.96,0.00039452,2]
[377234423,1754305937103,-1001.01,0.00039452,2]
[377234424,1754305937112,-6021.56,0.00039452,2]
[377234425,1754305937121,-3451.49,0.00039452,2]
[377234426,1754305937131,-688.87,0.00039452,2]